fUSD/lending_fUSD_20260112
["ID","MTS","AMOUNT","RATE_DAILY","PERIOD"]
[401457147,1768237838452,-605.15415028,0.00015998,2]
[401457149,1768237838463,-365.00206732,0.00015998,2]
[401457187,1768237838812,-523623.14276359,0.00015998,2]
[401457190,1768237838824,-274814.42928252,0.00015998,2]
[401457192,1768237838833,-234.85694137,0.00016023,2]
[401457194,1768237838843,-232.41861165,0.00016023,2]
[401457196,1768237838852,-265.85,0.00016048,2]
[401457198,1768237838862,-16639.8368746,0.00016077,2]
[401457200,1768237838871,-500.0,0.00016097,2]
[401457202,1768237838881,-500.0,0.00016097,2]
[401457204,1768237838890,-500.0,0.00016097,2]
[401457206,1768237838900,-500.0,0.00016097,2]
[401457208,1768237838910,-526.37134529,0.00016097,2]
[401457210,1768237838919,-500.0,0.00016097,2]
[401457212,1768237838929,-213.12201918,0.00016177,2]
[401457214,1768237838938,-202.96,0.00016195,2]
[401457216,1768237838948,-150.0,0.000162,2]
[401457218,1768237838958,-150.0,0.000162,2]
[401457219,1768237838967,-150.0,0.000162,2]
[401457221,1768237838978,-150.0,0.000162,2]
[401457223,1768237838988,-150.0,0.000162,2]
[401457226,1768237838997,-150.0,0.000162,2]
[401457228,1768237839008,-150.0,0.000162,2]
[401457230,1768237839019,-150.0,0.000162,2]
[401457232,1768237839029,-150.0,0.000162,2]
[401457234,1768237839039,-150.0,0.000162,2]
[401457236,1768237839049,-150.0,0.000162,2]
[401457238,1768237839058,-57540.968926,0.00016201,2]
[401457239,1768237839067,-457.14060023,0.00016205,2]
[401457241,1768237839079,-2435.39498007,0.0001624,2]
[401457243,1768237839090,-150.0,0.00016242,2]
[401457246,1768237839100,-150.0,0.00016251,2]
[401457248,1768237839111,-150.0,0.00016262,2]
[401457250,1768237839121,-16639.83687455,0.0001628,2]
[401457251,1768237839132,-150.0,0.00016282,2]
[401457253,1768237839141,-150.0,0.00016284,2]
[401457255,1768237839152,-150.0,0.00016295,2]
[401457258,1768237839162,-150.0,0.00016303,2]
[401457260,1768237839172,-150.0,0.0001632,2]
[401457261,1768237839181,-150.0,0.00016324,2]
[401457263,1768237839190,-150.0,0.00016326,2]
[401457265,1768237839200,-150.0,0.00016354,2]
[401457267,1768237839209,-150.0,0.00016364,2]
[401457269,1768237839219,-150.0,0.00016364,2]
[401457271,1768237839228,-150.0,0.00016367,2]
[401457273,1768237839238,-256.2,0.00016377,2]
[401457275,1768237839247,-150.0,0.00016386,2]
[401457277,1768237839257,-150.0,0.00016389,2]
[401457280,1768237839266,-150.0,0.00016406,2]
[401457282,1768237839275,-150.0,0.00016409,2]
[401457284,1768237839284,-553.74,0.00016438,2]
[401457286,1768237839295,-553.74,0.00016438,2]
[401457288,1768237839304,-553.74,0.00016438,2]
[401457290,1768237839314,-553.74,0.00016438,2]
[401457292,1768237839327,-600.0,0.00016438,2]
[401457294,1768237839336,-16052.23,0.00016438,2]
[401457296,1768237839345,-151.0,0.00016438,2]
[401457298,1768237839355,-150.0,0.0001644,2]
[401457300,1768237839366,-150.0,0.00016445,2]
[401457302,1768237839375,-2435.39498007,0.00016447,2]
[401457304,1768237839384,-150.0,0.00016448,2]
[401457307,1768237839394,-150.0,0.00016451,2]
[401457309,1768237839404,-150.0,0.00016457,2]
[401457311,1768237839413,-16639.83687455,0.00016482,2]
[401457313,1768237839423,-150.0,0.00016484,2]
[401457314,1768237839432,-457.14060023,0.00016488,2]
[401457316,1768237839441,-150.0,0.00016493,2]
[401457318,1768237839450,-150.0,0.00016509,2]
[401457320,1768237839459,-150.0,0.0001651,2]
[401457322,1768237839469,-200.0,0.00016511,2]
[401457324,1768237839478,-150.0,0.00016527,2]
[401457327,1768237839488,-150.0,0.00016527,2]
[401457329,1768237839497,-150.0,0.00016535,2]
[401457332,1768237839506,-150.0,0.0001656,2]
[401457335,1768237839515,-150.0,0.0001656,2]
[401457338,1768237839524,-150.0,0.00016572,2]
[401457340,1768237839533,-150.0,0.00016577,2]
[401457342,1768237839542,-150.0,0.00016579,2]
[401457344,1768237839551,-2015.86701703,0.0001659,2]
[401457346,1768237839561,-150.0,0.00016609,2]
[401457348,1768237839572,-150.0,0.00016611,2]
[401457350,1768237839582,-150.0,0.00016619,2]
[401457352,1768237839592,-150.0,0.00016634,2]
[401457354,1768237839601,-1000.0,0.0001665,2]
[401457356,1768237839611,-2435.39498007,0.00016655,2]
[401457358,1768237839620,-1000.0,0.00016655,2]
[401457360,1768237839630,-500.0,0.00016658,2]
[401457362,1768237839640,-150.0,0.0001666,2]
[401457364,1768237839649,-150.0,0.00016663,2]
[401457366,1768237839660,-150.0,0.00016674,2]
[401457368,1768237839668,-150.0,0.0001668,2]
[401457370,1768237839679,-151.0,0.00016682,2]
[401457372,1768237839688,-16639.83687455,0.00016685,2]
[401457374,1768237839698,-150.0,0.00016691,2]
[401457376,1768237839707,-150.0,0.00016691,2]
[401457378,1768237839717,-150.0,0.00016697,2]
[401457380,1768237839726,-150.0,0.00016702,2]
[401457382,1768237839736,-150.0,0.00016714,2]
[401457384,1768237839745,-162.0,0.0001672,2]
[401457386,1768237839753,-150.0,0.00016744,2]
[401457388,1768237839764,-150.0,0.00016759,2]
[401457390,1768237839774,-150.0,0.00016766,2]
[401457392,1768237839784,-150.0,0.00016768,2]
[401457394,1768237839792,-457.14060023,0.0001677,2]
[401457396,1768237839801,-150.0,0.00016773,2]
[401457398,1768237839811,-150.0,0.00016786,2]
[401457399,1768237839822,-150.0,0.000168,2]
[401457400,1768237839831,-150.0,0.000168,2]
[401457401,1768237839840,-150.0,0.000168,2]
[401457402,1768237839850,-150.0,0.00016817,2]
[401457403,1768237839859,-150.0,0.00016821,2]
[401457404,1768237839869,-150.0,0.00016828,2]
[401457405,1768237839879,-265.85,0.00016851,2]
[401457406,1768237839889,-150.0,0.00016855,2]
[401457407,1768237839899,-150.0,0.00016855,2]
[401457408,1768237839909,-2435.39498007,0.00016862,2]
[401457410,1768237839919,-150.0,0.00016863,2]
[401457412,1768237839928,-150.0,0.00016869,2]
[401457414,1768237839938,-150.0,0.0001687,2]
[401457416,1768237839947,-150.0,0.00016883,2]
[401457418,1768237839957,-192.34,0.00016883,2]
[401457420,1768237839967,-16639.83687455,0.00016887,2]
[401457422,1768237839976,-800.0,0.000169,6]
[401457424,1768237839985,-1000.0,0.00016904,2]
[401457426,1768237839995,-150.0,0.00016912,2]
[401457428,1768237840004,-150.0,0.0001692,2]
[401457430,1768237840013,-150.0,0.0001692,2]
[401457432,1768237840022,-248.59389289,0.00016928,2]
[401457434,1768237840031,-1000.0,0.00016933,2]
[401457436,1768237840041,-150.0,0.00016936,2]
[401457438,1768237840050,-2500.0,0.00016938,2]
[401457440,1768237840059,-1936.99946493,0.00016938,2]
[401457442,1768237840069,-600.0,0.00016938,2]
[401457444,1768237840078,-500.0,0.00016941,2]
[401457446,1768237840087,-150.0,0.00016945,2]
[401457448,1768237840097,-150.0,0.00016953,2]
[401457451,1768237840108,-150.0,0.00016958,2]
[401457453,1768237840117,-150.0,0.00016971,2]
[401457454,1768237840127,-200.0,0.00016986,2]
[401457456,1768237840135,-150.0,0.00016995,2]
[401457458,1768237840145,-250.0,0.00017,2]
[401457460,1768237840154,-225.13457576,0.00017,2]
[401457462,1768237840164,-150.0,0.00017007,2]
[401457464,1768237840173,-322.6107,0.00017018,2]
[401457466,1768237840183,-1025.94323817,0.00017018,2]
[401457468,1768237840193,-533.88981491,0.00017018,2]
[401457470,1768237840203,-500.0,0.00017018,2]
[401457472,1768237840213,-151.0,0.00017018,2]
[401457474,1768237840223,-620.0,0.00017018,2]
[401457476,1768237840233,-500.0,0.00017018,2]
[401457478,1768237840243,-500.0,0.00017018,2]
[401457480,1768237840255,-724.98153853,0.00017018,2]
[401457482,1768237840264,-194.72792766,0.00017018,2]
[401457484,1768237840273,-500.0,0.00017018,2]
[401457486,1768237840283,-500.0,0.00017018,2]
[401457488,1768237840292,-500.0,0.00017018,2]
[401457490,1768237840301,-500.0,0.00017018,2]
[401457492,1768237840311,-500.0,0.00017018,2]
[401457494,1768237840322,-500.0,0.00017018,2]
[401457496,1768237840334,-500.0,0.00017018,2]
[401457498,1768237840343,-500.0,0.00017018,2]
[401457500,1768237840353,-500.0,0.00017018,2]
[401457502,1768237840362,-500.0,0.00017018,2]
[401457505,1768237840374,-500.0,0.00017018,2]
[401457506,1768237840383,-500.0,0.00017018,2]
[401457509,1768237840392,-500.0,0.00017018,2]
[401457510,1768237840401,-500.0,0.00017018,2]
[401457512,1768237840412,-500.0,0.00017018,2]
[401457514,1768237840421,-706.57931957,0.00017018,2]
[401457516,1768237840430,-500.0,0.00017018,2]
[401457518,1768237840439,-500.0,0.00017018,2]
[401457521,1768237840449,-500.0,0.00017018,2]
[401457523,1768237840458,-500.0,0.00017018,2]
[401457525,1768237840468,-500.0,0.00017018,2]
[401457527,1768237840477,-500.0,0.00017018,2]
[401457529,1768237840486,-500.0,0.00017018,2]
[401457531,1768237840496,-250.0,0.00017018,2]
[401457533,1768237840505,-500.0,0.00017018,2]
[401457535,1768237840515,-250.0,0.00017018,2]
[401457537,1768237840524,-250.0,0.00017018,2]
[401457539,1768237840533,-250.0,0.00017018,2]
[401457541,1768237840542,-500.0,0.00017018,2]
[401457543,1768237840551,-250.0,0.00017018,2]
[401457545,1768237840560,-500.0,0.00017018,2]
[401457547,1768237840570,-250.0,0.00017018,2]
[401457549,1768237840579,-500.0,0.00017018,2]
[401457551,1768237840589,-250.0,0.00017018,2]
[401457553,1768237840598,-250.0,0.00017018,2]
[401457555,1768237840607,-500.0,0.00017018,2]
[401457556,1768237840617,-250.0,0.00017018,2]
[401457558,1768237840626,-500.0,0.00017018,2]
[401457560,1768237840635,-250.0,0.00017018,2]
[401457563,1768237840644,-285.08125974,0.00017018,2]
[401457564,1768237840654,-250.0,0.00017018,2]
[401457566,1768237840662,-500.0,0.00017018,2]
[401457568,1768237840671,-214.19143741,0.00017018,2]
[401457570,1768237840681,-500.0,0.00017018,2]
[401457572,1768237840691,-998.0,0.00017018,2]
[401457574,1768237840700,-500.0,0.00017018,2]
[401457576,1768237840709,-500.0,0.00017018,2]
[401457578,1768237840718,-500.0,0.00017018,2]
[401457580,1768237840727,-500.0,0.00017018,2]
[401457582,1768237840736,-500.0,0.00017018,2]
[401457584,1768237840746,-500.0,0.00017018,2]
[401457586,1768237840755,-688.98,0.00017018,2]
[401457588,1768237840764,-150.0,0.00017018,2]
[401457590,1768237840773,-150.0,0.00017018,2]
[401457592,1768237840782,-150.0,0.00017023,2]
[401457594,1768237840791,-150.0,0.00017037,2]
[401457596,1768237840801,-150.0,0.0001704,2]
[401457598,1768237840810,-150.0,0.00017053,2]
[401457600,1768237840821,-457.14060023,0.00017053,2]
[401457602,1768237840830,-1000.0,0.00017068,2]
[401457604,1768237840840,-150.0,0.00017069,2]
[401457606,1768237840849,-2435.39498007,0.0001707,2]
[401457608,1768237840858,-500.0,0.00017073,2]
[401457610,1768237840867,-500.0,0.00017073,2]
[401457612,1768237840878,-500.0,0.00017073,2]
[401457614,1768237840887,-500.0,0.00017073,2]
[401457616,1768237840897,-500.0,0.00017073,2]
[401457618,1768237840906,-323.61319503,0.00017073,2]
[401457621,1768237840916,-500.0,0.00017073,2]
[401457623,1768237840926,-500.0,0.00017073,2]
[401457625,1768237840936,-503.00247421,0.00017073,2]
[401457627,1768237840945,-163.4155148,0.00017073,2]
[401457629,1768237840954,-169.17232811,0.00017073,2]
[401457631,1768237840964,-162.59101262,0.00017073,2]
[401457632,1768237840973,-500.19211788,0.00017073,2]
[401457634,1768237840982,-500.74413922,0.00017073,2]
[401457635,1768237840992,-500.0,0.00017073,2]
[401457636,1768237841001,-500.0,0.00017073,2]
[401457637,1768237841010,-500.0,0.00017073,2]
[401457638,1768237841019,-500.0,0.00017073,2]
[401457639,1768237841029,-500.0,0.00017073,2]
[401457640,1768237841038,-500.0,0.00017073,2]
[401457641,1768237841047,-500.0,0.00017073,2]
[401457642,1768237841057,-511.71385202,0.00017073,2]
[401457643,1768237841067,-500.53829083,0.00017073,2]
[401457644,1768237841076,-500.26791262,0.00017073,2]
[401457645,1768237841085,-500.84213941,0.00017073,2]
[401457646,1768237841094,-486.88056707,0.00017073,2]
[401457647,1768237841103,-501.85422751,0.00017073,2]
[401457648,1768237841113,-647.42016729,0.00017073,2]
[401457649,1768237841123,-500.32712274,0.00017073,2]
[401457650,1768237841132,-500.0,0.00017073,2]
[401457651,1768237841142,-500.0,0.00017073,2]
[401457652,1768237841151,-500.0,0.00017073,2]
[401457653,1768237841161,-500.0,0.00017073,2]
[401457654,1768237841171,-150.0,0.00017074,2]
[401457655,1768237841180,-150.0,0.00017079,2]
[401457656,1768237841189,-16639.83687455,0.0001709,2]
[401457657,1768237841199,-150.0,0.000171,2]
[401457658,1768237841208,-150.0,0.000171,2]
[401457659,1768237841218,-1000.0,0.00017104,2]
[401457660,1768237841227,-475.0,0.00017117,2]
[401457661,1768237841237,-150.0,0.00017121,2]
[401457662,1768237841246,-150.0,0.00017126,2]
[401457663,1768237841256,-202.96,0.00017126,2]
[401457664,1768237841265,-195.0,0.00017131,2]
[401457665,1768237841275,-300.0,0.00017131,2]
[401457666,1768237841285,-150.0,0.00017131,2]
[401457667,1768237841294,-150.0,0.00017147,2]
[401457668,1768237841304,-500.0,0.00017152,2]
[401457669,1768237841316,-553.74,0.00017159,2]
[401457670,1768237841329,-150.0,0.0001716,2]
[401457671,1768237841339,-150.0,0.00017163,2]
[401457672,1768237841349,-256.2,0.00017168,2]
[401457673,1768237841360,-150.0,0.00017177,2]
[401457674,1768237841369,-150.0,0.00017182,2]
[401457675,1768237841379,-150.0,0.00017182,2]
[401457676,1768237841389,-1856.9,0.00017188,2]
[401457677,1768237841405,-150.0,0.00017193,2]
[401457678,1768237841419,-150.0,0.00017205,2]
[401457679,1768237841428,-150.0,0.00017229,2]
[401457680,1768237841438,-1000.0,0.00017232,2]
[401457681,1768237841447,-150.0,0.00017242,2]
[401457682,1768237841457,-168.0,0.00017243,2]
[401457683,1768237841467,-150.0,0.00017247,2]
[401457684,1768237841477,-1000.0,0.00017252,2]
[401457685,1768237841487,-150.0,0.00017255,2]
[401457686,1768237841497,-500.0,0.0001726,2]
[401457687,1768237841507,-150.0,0.00017264,2]
[401457688,1768237841516,-600.0,0.00017272,2]
[401457689,1768237841526,-2435.39498007,0.00017277,2]
[401457690,1768237841536,-150.0,0.0001728,2]
[401457691,1768237841546,-150.0,0.0001728,2]
[401457692,1768237841556,-150.0,0.00017288,2]
[401457693,1768237841565,-688.98,0.00017292,2]
[401457694,1768237841858,-16639.83687455,0.00017292,2]
[401457695,1768237841868,-1200.0,0.000173,6]
[401457696,1768237841879,-150.0,0.00017317,2]
[401457697,1768237841888,-1000.0,0.00017323,2]
[401457698,1768237841898,-150.0,0.0001733,2]
[401457699,1768237841910,-150.0,0.00017331,2]
[401457700,1768237841920,-457.14060023,0.00017335,2]
[401457701,1768237841929,-150.0,0.00017337,2]
[401457702,1768237841939,-1000.0,0.00017338,2]
[401457703,1768237841948,-168.0,0.00017344,2]
[401457704,1768237841958,-150.0,0.00017345,2]
[401457705,1768237841967,-150.0,0.00017345,2]
[401457706,1768237841977,-150.0,0.00017372,2]
[401457707,1768237841987,-150.0,0.00017379,2]
[401457708,1768237841997,-150.0,0.00017383,2]
[401457709,1768237842007,-1000.0,0.00017384,2]
[401457710,1768237842017,-150.0,0.000174,2]
[401457711,1768237842027,-150.0,0.000174,2]
[401457712,1768237842037,-150.0,0.000174,2]
[401457713,1768237842047,-1600.0,0.000174,6]
[401457714,1768237842056,-150.0,0.00017414,2]
[401457715,1768237842066,-150.0,0.00017427,2]
[401457716,1768237842075,-150.0,0.00017432,2]
[401457717,1768237842085,-202.96,0.00017434,2]
[401457718,1768237842094,-150.0,0.00017434,2]
[401457719,1768237842107,-150.0,0.00017441,2]
[401457720,1768237842118,-168.0,0.00017444,2]
[401457721,1768237842127,-150.0,0.00017456,2]
[401457722,1768237842136,-256.2,0.00017481,2]
[401457723,1768237842146,-2435.39498007,0.00017485,2]
[401457724,1768237842155,-150.0,0.00017486,2]
[401457725,1768237842164,-168.0,0.00017489,2]
[401457726,1768237842173,-16639.83687455,0.00017495,2]
[401457727,1768237842183,-150.0,0.00017498,2]
[401457728,1768237842192,-2000.0,0.000175,6]
[401457729,1768237842201,-150.0,0.00017503,2]
[401457730,1768237842210,-150.0,0.00017509,2]
[401457731,1768237842219,-150.0,0.00017509,2]
[401457732,1768237842229,-150.0,0.0001752,2]
[401457734,1768237842238,-150.0,0.00017526,2]
[401457736,1768237842248,-150.0,0.00017537,2]
[401457739,1768237842258,-150.0,0.0001754,2]
[401457741,1768237842267,-688.98,0.00017565,2]
[401457743,1768237842278,-150.0,0.00017566,2]
[401457744,1768237842288,-553.64373807,0.00017566,2]
[401457745,1768237842298,-151.0,0.00017566,2]
[401457746,1768237842307,-324.05202517,0.00017566,2]
[401457747,1768237842316,-1680.0,0.00017578,2]
[401457748,1768237842329,-150.0,0.00017581,2]
[401457749,1768237842339,-150.0,0.00017589,2]
[401457750,1768237842348,-150.0,0.00017591,2]
[401457751,1768237842358,-500.0,0.00017594,2]
[401457752,1768237842367,-1639.0,0.00017595,2]
[401457753,1768237842377,-1000.0,0.00017597,2]
[401457754,1768237842386,-161.58692255,0.00017599,2]
[401457755,1768237842395,-9803.0,0.000176,2]
[401457756,1768237842405,-400.0,0.000176,6]
[401457757,1768237842415,-457.14060023,0.00017618,2]
[401457758,1768237842424,-213.20330559,0.00017621,2]
[401457759,1768237842434,-1000.0,0.00017621,2]
[401457760,1768237842443,-1000.0,0.00017621,2]
[401457761,1768237842452,-749.39394419,0.00017621,2]
[401457762,1768237842463,-1000.0,0.00017621,2]
[401457763,1768237842472,-557.0137817,0.00017621,2]
[401457764,1768237842481,-1001.478272,0.00017621,2]
[401457765,1768237842492,-1000.0,0.00017621,2]
[401457766,1768237842502,-1000.0,0.00017621,2]
[401457767,1768237842511,-501.63732699,0.00017621,2]
[401457768,1768237842521,-501.96234831,0.00017621,2]
[401457769,1768237842531,-1000.0,0.00017621,2]
[401457770,1768237842541,-1000.0,0.00017621,2]
[401457771,1768237842554,-1000.0,0.00017621,2]
[401457772,1768237842563,-1000.0,0.00017621,2]
[401457773,1768237842574,-158.8798646,0.00017621,2]
[401457774,1768237842583,-150.0,0.00017621,2]
[401457775,1768237842592,-150.0,0.00017623,2]
[401457776,1768237842603,-150.0,0.00017628,2]
[401457777,1768237842613,-150.0,0.0001764,2]
[401457778,1768237842624,-150.0,0.0001764,2]
[401457779,1768237842635,-7849.30351025,0.0001764,2]
[401457780,1768237842646,-265.85,0.00017653,2]
[401457781,1768237842656,-158.93658955,0.00017657,2]
[401457782,1768237842666,-150.0,0.00017665,2]
[401457783,1768237842677,-150.0,0.00017673,2]
[401457784,1768237842686,-150.0,0.00017673,2]
[401457785,1768237842696,-915.241,0.0001768,2]
[401457786,1768237842706,-1202.614,0.0001768,2]
[401457787,1768237842718,-150.0,0.0001769,2]
[401457788,1768237842727,-150.0,0.00017691,2]
[401457789,1768237842737,-2435.39498007,0.00017692,2]
[401457790,1768237842746,-16639.83687455,0.00017697,2]
[401457791,1768237842755,-150.0,0.00017699,2]
[401457792,1768237842765,-766.0,0.00017699,2]
[401457793,1768237842775,-150.0,0.00017699,2]
[401457794,1768237842783,-500.0,0.00017699,2]
[401457795,1768237842793,-653.0,0.00017699,2]
[401457796,1768237842802,-500.0,0.00017699,2]
[401457797,1768237842811,-500.0,0.00017699,2]
[401457798,1768237842821,-150.0,0.00017699,2]
[401457799,1768237842830,-500.0,0.00017699,2]
[401457801,1768237842840,-500.0,0.00017699,2]
[401457803,1768237842849,-500.0,0.00017699,2]
[401457804,1768237842859,-150.0,0.00017699,2]
[401457805,1768237842869,-1000.0,0.000177,2]
[401457806,1768237842879,-400.0,0.000177,6]
[401457807,1768237842888,-150.0,0.00017707,2]
[401457808,1768237842898,-150.0,0.00017716,2]
[401457809,1768237842908,-2437.0,0.0001772,2]
[401457810,1768237842918,-566.0,0.0001772,2]
[401457811,1768237842927,-4821.0,0.0001772,2]
[401457812,1768237842938,-150.0,0.00017743,2]
[401457813,1768237842948,-150.0,0.00017749,2]
[401457814,1768237842958,-161.58692255,0.0001775,2]
[401457815,1768237842968,-150.0,0.00017752,2]
[401457816,1768237842978,-152.62137386,0.00017754,2]
[401457817,1768237842988,-766.0,0.00017754,2]
[401457818,1768237842998,-150.0,0.00017754,2]
[401457819,1768237843008,-500.0,0.00017754,2]
[401457820,1768237843018,-653.0,0.00017754,2]
[401457821,1768237843028,-500.0,0.00017754,2]
[401457822,1768237843038,-500.0,0.00017754,2]
[401457823,1768237843047,-500.0,0.00017754,2]
[401457824,1768237843058,-500.0,0.00017754,2]
[401457825,1768237843068,-500.0,0.00017754,2]
[401457826,1768237843077,-150.0,0.00017755,2]
[401457827,1768237843086,-150.0,0.0001776,2]
[401457828,1768237843096,-168.0,0.00017761,2]
[401457829,1768237843106,-150.0,0.00017791,2]
[401457830,1768237843116,-270.62,0.00017791,2]
[401457831,1768237843126,-150.0,0.00017794,2]
[401457832,1768237843135,-398.2466388,0.00017795,2]
[401457833,1768237843147,-2000.0,0.000178,2]
[401457834,1768237843157,-1000.0,0.000178,2]
[401457835,1768237843167,-400.0,0.000178,6]
[401457836,1768237843177,-156.587,0.00017807,2]
[401457837,1768237843188,-500.0,0.00017808,2]
[401457838,1768237843198,-220.00667831,0.00017808,2]
[401457839,1768237843209,-766.0,0.00017809,2]
[401457840,1768237843221,-150.0,0.00017809,2]
[401457841,1768237843230,-500.0,0.00017809,2]
[401457842,1768237843240,-653.0,0.00017809,2]
[401457843,1768237843251,-269.06323949,0.00017809,2]
[401457844,1768237843262,-500.0,0.00017809,2]
[401457845,1768237843274,-500.0,0.00017809,2]
[401457846,1768237843283,-500.0,0.00017809,2]
[401457847,1768237843293,-316.59937829,0.00017809,2]
[401457848,1768237843303,-150.0,0.00017811,2]
[401457849,1768237843312,-150.0,0.00017814,2]
[401457850,1768237843326,-213.5,0.00017817,2]
[401457851,1768237843335,-2434.65585,0.0001782,2]
[401457852,1768237843346,-2434.65585,0.0001782,2]
[401457853,1768237843355,-1069.60379365,0.0001782,2]
[401457854,1768237843365,-192.34,0.00017821,2]
[401457855,1768237843374,-2434.65586,0.0001783,2]
[401457856,1768237843383,-150.0,0.00017833,2]
[401457857,1768237843395,-150.0,0.00017836,2]
[401457858,1768237843404,-150.0,0.00017836,2]
[401457859,1768237843415,-688.98,0.00017839,2]
[401457860,1768237843425,-213.49021801,0.0001784,2]
[401457861,1768237843435,-150.0,0.00017846,2]
[401457862,1768237843446,-398.2466388,0.00017848,2]
[401457863,1768237843457,-1000.0,0.00017854,2]
[401457864,1768237843466,-200.0,0.00017856,2]
[401457865,1768237843476,-2434.65585,0.0001786,2]
[401457866,1768237843486,-500.0,0.00017863,2]
[401457867,1768237843496,-26538.0,0.00017863,2]
[401457868,1768237843506,-766.0,0.00017863,2]
[401457869,1768237843516,-150.0,0.00017863,2]
[401457870,1768237843526,-500.0,0.00017863,2]
[401457871,1768237843537,-653.0,0.00017863,2]
[401457872,1768237843549,-159.20755794,0.00017863,2]
[401457873,1768237843558,-500.0,0.00017863,2]
[401457874,1768237843570,-500.0,0.00017863,2]
[401457875,1768237843580,-30000.0,0.0001787,2]
[401457876,1768237843590,-150.0,0.00017874,2]
[401457877,1768237843602,-150.0,0.00017876,2]
[401457878,1768237843614,-150.0,0.0001788,2]
[401457879,1768237843623,-2434.65585,0.0001788,2]
[401457880,1768237843631,-152.92662848,0.00017882,2]
[401457881,1768237843641,-500.0,0.00017882,2]
[401457882,1768237843650,-25000.0,0.00017891,3]
[401457883,1768237843660,-151.0,0.00017892,2]
[401457884,1768237843669,-151.0,0.00017892,2]
[401457885,1768237843679,-151.0,0.00017892,2]
[401457886,1768237843688,-151.0,0.00017892,2]
[401457887,1768237843697,-151.0,0.00017892,2]
[401457888,1768237843707,-262.49854168,0.00017894,2]
[401457889,1768237843716,-500.0,0.00017894,2]
[401457890,1768237843725,-553.74,0.00017894,2]
[401457891,1768237843734,-553.74,0.00017894,2]
[401457892,1768237843743,-553.74,0.00017894,2]
[401457893,1768237843752,-553.74,0.00017894,2]
[401457894,1768237843766,-553.74,0.00017894,2]
[401457895,1768237843776,-553.74,0.00017894,2]
[401457896,1768237843786,-553.74,0.00017894,2]
[401457897,1768237843796,-300.0,0.00017894,2]
[401457898,1768237843808,-177554.33702356,0.00017895,2]
[401457899,1768237843818,-1135135.3207215,0.00017895,2]
[401457900,1768237843826,-151.0,0.00017895,2]
[401457901,1768237843835,-151.0,0.00017895,2]
[401457902,1768237843844,-151.0,0.00017895,2]
[401457903,1768237843854,-151.0,0.00017895,2]
[401457904,1768237843864,-151.0,0.00017895,2]
[401457905,1768237843875,-174.931358,0.00017895,2]
[401457906,1768237843886,-151.0,0.00017895,2]
[401457907,1768237843896,-3766.7356762,0.00017895,2]
[401457908,1768237843907,-151.0,0.00017895,2]
[401457909,1768237843917,-151.0,0.00017895,2]
[401457910,1768237843927,-151.0,0.00017895,2]
[401457911,1768237843938,-151.0,0.00017895,2]
[401457912,1768237843948,-172.359513,0.00017895,2]
[401457913,1768237843958,-151.0,0.00017895,2]